[Event "Late-Titled-Tuesday-Blitz-June-18-2024"]
[Site "Chess.com"]
[Date "2024.06.18"]
[Round "9"]
[White "zverr1"]
[Black "pirulillo"]
[Result "1/2-1/2"]
[WhiteElo "2540"]
[BlackElo "2415"]
[TimeControl "180+1"]
[EndTime "15:47:12 PDT"]
[Termination "Game drawn - insufficient material"]

1. e4 {[%clk 0:02:58.2]} 1... c5 {[%clk 0:02:56.3]} 2. Nf3 {[%clk 0:02:58.1]}
2... e6 {[%clk 0:02:56]} 3. b3 {[%clk 0:02:58.2]} 3... Nc6 {[%clk 0:02:52.7]} 4.
Bb2 {[%clk 0:02:57.3]} 4... d6 {[%clk 0:02:52.8]} 5. g3 {[%clk 0:02:51.5]} 5...
Nf6 {[%clk 0:02:50.8]} 6. Qe2 {[%clk 0:02:50.4]} 6... Be7 {[%clk 0:02:47.9]} 7.
Bg2 {[%clk 0:02:50.3]} 7... O-O {[%clk 0:02:47.3]} 8. O-O {[%clk 0:02:49.8]}
8... Bd7 {[%clk 0:02:41.1]} 9. d4 {[%clk 0:02:42.9]} 9... cxd4 {[%clk
0:02:38.2]} 10. Nxd4 {[%clk 0:02:43.8]} 10... Nxd4 {[%clk 0:02:36.6]} 11. Bxd4
{[%clk 0:02:44.7]} 11... Bc6 {[%clk 0:02:35.3]} 12. c4 {[%clk 0:02:39.8]} 12...
a6 {[%clk 0:02:14.3]} 13. e5 {[%clk 0:02:14.7]} 13... Bxg2 {[%clk 0:02:08.9]}
14. Kxg2 {[%clk 0:02:15.6]} 14... dxe5 {[%clk 0:02:06]} 15. Bxe5 {[%clk
0:02:16.5]} 15... Qd7 {[%clk 0:02:02.2]} 16. Qf3 {[%clk 0:02:09.8]} 16... b5
{[%clk 0:01:56.9]} 17. Rd1 {[%clk 0:02:09.6]} 17... Qc8 {[%clk 0:01:51.8]} 18.
Nd2 {[%clk 0:02:07.2]} 18... Rd8 {[%clk 0:01:46.4]} 19. Ne4 {[%clk 0:01:47.8]}
19... Nxe4 {[%clk 0:01:37.7]} 20. Qxe4 {[%clk 0:01:40.4]} 20... bxc4 {[%clk
0:01:33.3]} 21. Rxd8+ {[%clk 0:01:26.3]} 21... Bxd8 {[%clk 0:01:34.2]} 22. bxc4
{[%clk 0:01:26.2]} 22... f5 {[%clk 0:01:30.9]} 23. Qd4 {[%clk 0:01:21.3]} 23...
Qc6+ {[%clk 0:01:27.2]} 24. Kg1 {[%clk 0:01:21.2]} 24... Bb6 {[%clk 0:01:24.9]}
25. Qc3 {[%clk 0:01:10.6]} 25... Rc8 {[%clk 0:01:11]} 26. Rc1 {[%clk 0:00:45.3]}
26... Qc5 {[%clk 0:00:58.3]} 27. Rc2 {[%clk 0:00:42.7]} 27... Ba5 {[%clk
0:00:51.6]} 28. Qd4 {[%clk 0:00:29]} 28... Qxd4 {[%clk 0:00:42.9]} 29. Bxd4
{[%clk 0:00:29.9]} 29... Kf7 {[%clk 0:00:37.5]} 30. f4 {[%clk 0:00:27.2]} 30...
Rd8 {[%clk 0:00:36.1]} 31. Be3 {[%clk 0:00:22.3]} 31... Rd3 {[%clk 0:00:34]} 32.
Kf2 {[%clk 0:00:21.1]} 32... Ke7 {[%clk 0:00:31.6]} 33. c5 {[%clk 0:00:16.7]}
33... Kd7 {[%clk 0:00:31.1]} 34. c6+ {[%clk 0:00:17]} 34... Kc7 {[%clk
0:00:30.3]} 35. Ke2 {[%clk 0:00:16.1]} 35... Rd5 {[%clk 0:00:29.5]} 36. Bc1
{[%clk 0:00:10.1]} 36... Rd6 {[%clk 0:00:28.3]} 37. Bb2 {[%clk 0:00:10.5]} 37...
Rxc6 {[%clk 0:00:28.1]} 38. Rxc6+ {[%clk 0:00:09.4]} 38... Kxc6 {[%clk 0:00:29]}
39. Bxg7 {[%clk 0:00:09.3]} 39... Kd5 {[%clk 0:00:29.2]} 40. Kd3 {[%clk
0:00:08.9]} 40... Bb6 {[%clk 0:00:29]} 41. h3 {[%clk 0:00:08]} 41... Bf2 {[%clk
0:00:28.4]} 42. g4 {[%clk 0:00:08.3]} 42... fxg4 {[%clk 0:00:20.7]} 43. hxg4
{[%clk 0:00:08.5]} 43... Bg3 {[%clk 0:00:20.2]} 44. Be5 {[%clk 0:00:07.8]} 44...
Bh4 {[%clk 0:00:19.7]} 45. Bb8 {[%clk 0:00:07.3]} 45... Bg3 {[%clk 0:00:18.8]}
46. Be5 {[%clk 0:00:05.9]} 46... Be1 {[%clk 0:00:17.7]} 47. Bb8 {[%clk
0:00:05.5]} 47... Ba5 {[%clk 0:00:16.5]} 48. Be5 {[%clk 0:00:05.1]} 48... Bd8
{[%clk 0:00:16.5]} 49. Bb8 {[%clk 0:00:05.3]} 49... Bf6 {[%clk 0:00:16.4]} 50.
Ke3 {[%clk 0:00:04.7]} 50... e5 {[%clk 0:00:16.3]} 51. g5 {[%clk 0:00:03.2]}
51... exf4+ {[%clk 0:00:15.8]} 52. Kxf4 {[%clk 0:00:04.1]} 52... Bg7 {[%clk
0:00:15.1]} 53. Kf5 {[%clk 0:00:04.1]} 53... a5 {[%clk 0:00:11.8]} 54. a4 {[%clk
0:00:02.6]} 54... Kc4 {[%clk 0:00:11.8]} 55. Be5 {[%clk 0:00:02.5]} 55... Bxe5
{[%clk 0:00:11]} 56. Kxe5 {[%clk 0:00:03.4]} 56... Kb4 {[%clk 0:00:11.6]} 57.
Kf6 {[%clk 0:00:04.3]} 57... Kxa4 {[%clk 0:00:12]} 58. Kg7 {[%clk 0:00:05.2]}
58... Kb5 {[%clk 0:00:12.5]} 59. Kxh7 {[%clk 0:00:05.8]} 59... a4 {[%clk
0:00:13.2]} 60. g6 {[%clk 0:00:06.5]} 60... a3 {[%clk 0:00:13.8]} 61. g7 {[%clk
0:00:07.4]} 61... a2 {[%clk 0:00:14.2]} 62. g8=Q {[%clk 0:00:07.6]} 62... a1=Q
{[%clk 0:00:14.6]} 63. Qe8+ {[%clk 0:00:07.1]} 63... Kc4 {[%clk 0:00:13.7]} 64.
Qe6+ {[%clk 0:00:06.1]} 64... Kd3 {[%clk 0:00:11.7]} 65. Qf5+ {[%clk 0:00:06.1]}
65... Kd2 {[%clk 0:00:11]} 66. Qf2+ {[%clk 0:00:05.9]} 66... Kc1 {[%clk
0:00:10.7]} 67. Qe1+ {[%clk 0:00:05.9]} 67... Kb2 {[%clk 0:00:10.8]} 68. Qd2+
{[%clk 0:00:06.3]} 68... Kb1 {[%clk 0:00:11.2]} 69. Kg6 {[%clk 0:00:05.6]} 69...
Qb2 {[%clk 0:00:11.1]} 70. Qd1+ {[%clk 0:00:04.4]} 70... Ka2 {[%clk 0:00:10.9]}
71. Qa4+ {[%clk 0:00:04.5]} 71... Qa3 {[%clk 0:00:11]} 72. Qc2+ {[%clk
0:00:04.7]} 72... Qb2 {[%clk 0:00:11.3]} 73. Qc4+ {[%clk 0:00:05.3]} 73... Qb3
{[%clk 0:00:11.4]} 74. Qxb3+ {[%clk 0:00:05.3]} 74... Kxb3 {[%clk 0:00:11.2]}
1/2-1/2

[Event "Late-Titled-Tuesday-Blitz-June-18-2024"]
[Site "Chess.com"]
[Date "2024.06.18"]
[Round "9"]
[White "Msb2"]
[Black "AlexeiShirov"]
[Result "1-0"]
[WhiteElo "3081"]
[BlackElo "2873"]
[TimeControl "180+1"]
[EndTime "15:47:15 PDT"]
[Termination "Msb2 won on time"]

1. d4 {[%clk 0:03:00.9]} 1... d5 {[%clk 0:02:59.1]} 2. c4 {[%clk 0:03:01.5]}
2... e6 {[%clk 0:02:57.7]} 3. Nc3 {[%clk 0:03:01.3]} 3... c6 {[%clk 0:02:57.5]}
4. Nf3 {[%clk 0:03:01.7]} 4... Nf6 {[%clk 0:02:55.9]} 5. Qc2 {[%clk 0:03:01.9]}
5... dxc4 {[%clk 0:02:50.5]} 6. e4 {[%clk 0:03:01.9]} 6... b5 {[%clk 0:02:49.5]}
7. Be2 {[%clk 0:03:02.5]} 7... Bb7 {[%clk 0:02:46.8]} 8. O-O {[%clk 0:03:02.7]}
8... Be7 {[%clk 0:02:45.7]} 9. Rb1 {[%clk 0:03:02.8]} 9... a6 {[%clk 0:02:30.2]}
10. b3 {[%clk 0:03:02.2]} 10... cxb3 {[%clk 0:02:28.8]} 11. Rxb3 {[%clk
0:03:03.1]} 11... c5 {[%clk 0:02:26.5]} 12. dxc5 {[%clk 0:03:01.9]} 12... Nbd7
{[%clk 0:02:19.7]} 13. e5 {[%clk 0:02:39.7]} 13... Nd5 {[%clk 0:02:13.2]} 14.
Ne4 {[%clk 0:02:40.3]} 14... Rc8 {[%clk 0:02:08.5]} 15. Bg5 {[%clk 0:02:26.8]}
15... Nxc5 {[%clk 0:01:50.2]} 16. Nd6+ {[%clk 0:02:22.4]} 16... Kf8 {[%clk
0:01:17.8]} 17. Nxc8 {[%clk 0:02:16.7]} 17... Qxc8 {[%clk 0:01:14.4]} 18. Rc1
{[%clk 0:02:01.3]} 18... f6 {[%clk 0:01:04.6]} 19. exf6 {[%clk 0:02:02.2]} 19...
gxf6 {[%clk 0:01:03.7]} 20. Bh6+ {[%clk 0:02:02.8]} 20... Kf7 {[%clk 0:00:55.8]}
21. Qd2 {[%clk 0:01:02.9]} 21... Rg8 {[%clk 0:00:38.2]} 22. Rbb1 {[%clk
0:00:40.2]} 22... Qd7 {[%clk 0:00:19.1]} 23. Rxc5 {[%clk 0:00:32]} 23... Bxc5
{[%clk 0:00:17.9]} 24. Qc2 {[%clk 0:00:32.7]} 24... Rg6 {[%clk 0:00:12.6]} 25.
Qxc5 {[%clk 0:00:30]} 25... Rxh6 {[%clk 0:00:12.6]} 26. a4 {[%clk 0:00:29.7]}
26... Qc7 {[%clk 0:00:12.1]} 27. Qxc7+ {[%clk 0:00:15.5]} 27... Nxc7 {[%clk
0:00:12.4]} 28. axb5 {[%clk 0:00:16.4]} 28... Nxb5 {[%clk 0:00:10.6]} 29. Bxb5
{[%clk 0:00:13.7]} 29... axb5 {[%clk 0:00:10.7]} 30. Nd4 {[%clk 0:00:14.4]}
30... Bd5 {[%clk 0:00:10.3]} 31. Rxb5 {[%clk 0:00:12.8]} 31... Rh4 {[%clk
0:00:10.8]} 32. Rb4 {[%clk 0:00:06.4]} 32... Re4 {[%clk 0:00:10.4]} 33. f3
{[%clk 0:00:06]} 33... Re1+ {[%clk 0:00:09.9]} 34. Kf2 {[%clk 0:00:06.7]} 34...
Rh1 {[%clk 0:00:10.1]} 35. Kg3 {[%clk 0:00:06.3]} 35... Kg6 {[%clk 0:00:09.5]}
36. Ne2 {[%clk 0:00:06.5]} 36... Re1 {[%clk 0:00:09.3]} 37. Nf4+ {[%clk
0:00:06.9]} 37... Kh6 {[%clk 0:00:08.4]} 38. Rb6 {[%clk 0:00:06.7]} 38... Kg7
{[%clk 0:00:07.9]} 39. Rd6 {[%clk 0:00:06.1]} 39... Re5 {[%clk 0:00:06]} 40. h4
{[%clk 0:00:06.2]} 40... Rf5 {[%clk 0:00:05.8]} 41. Rd7+ {[%clk 0:00:06.1]}
41... Kh6 {[%clk 0:00:04.2]} 42. Nh3 {[%clk 0:00:03.4]} 42... Re5 {[%clk
0:00:03.4]} 43. Kf2 {[%clk 0:00:03.5]} 43... Rf5 {[%clk 0:00:03.3]} 44. Rf7
{[%clk 0:00:02.9]} 44... Rh5 {[%clk 0:00:03]} 45. g4 {[%clk 0:00:02.6]} 45...
Rxh4 {[%clk 0:00:02.9]} 46. Kg3 {[%clk 0:00:03.1]} 46... Rxh3+ {[%clk
0:00:02.9]} 47. Kxh3 {[%clk 0:00:04]} 47... Kg6 {[%clk 0:00:01]} 48. Rc7 {[%clk
0:00:04]} 48... Bxf3 {[%clk 0:00:01.4]} 49. Kg3 {[%clk 0:00:04.9]} 49... Bd5
{[%clk 0:00:01.6]} 50. Kf4 {[%clk 0:00:05.8]} 50... h5 {[%clk 0:00:01.3]} 51.
gxh5+ {[%clk 0:00:05.9]} 51... Kxh5 {[%clk 0:00:01.8]} 52. Rg7 {[%clk
0:00:06.5]} 52... Kh6 {[%clk 0:00:02]} 53. Rg1 {[%clk 0:00:06.7]} 53... Kh7
{[%clk 0:00:02.6]} 54. Ke3 {[%clk 0:00:06]} 54... Kh6 {[%clk 0:00:03.1]} 55. Kd4
{[%clk 0:00:06.7]} 55... Kh7 {[%clk 0:00:03.8]} 56. Kc5 {[%clk 0:00:07.4]} 56...
Kh6 {[%clk 0:00:04.3]} 57. Kd6 {[%clk 0:00:08.1]} 57... Kh7 {[%clk 0:00:04.6]}
58. Ke7 {[%clk 0:00:08.7]} 58... f5 {[%clk 0:00:03.8]} 59. Kf6 {[%clk
0:00:09.3]} 59... f4 {[%clk 0:00:03.3]} 60. Rg7+ {[%clk 0:00:02.6]} 60... Kh6
{[%clk 0:00:03.2]} 61. Rg4 {[%clk 0:00:02.8]} 61... Kh5 {[%clk 0:00:03.1]} 62.
Rxf4 {[%clk 0:00:03.3]} 62... Bb3 {[%clk 0:00:02.8]} 63. Rd4 {[%clk 0:00:03.7]}
63... Bd5 {[%clk 0:00:03.3]} 64. Rb4 {[%clk 0:00:04.3]} 64... Ba2 {[%clk
0:00:03]} 65. Ra4 {[%clk 0:00:04.2]} 65... Bd5 {[%clk 0:00:03.5]} 66. Rd4 {[%clk
0:00:04.6]} 66... Bb3 {[%clk 0:00:03.4]} 67. Rd3 {[%clk 0:00:04.8]} 67... Bd5
{[%clk 0:00:03.4]} 68. Rg3 {[%clk 0:00:05.5]} 68... Kh4 {[%clk 0:00:02.8]} 69.
Rg5 {[%clk 0:00:05.4]} 69... Kh3 {[%clk 0:00:02.9]} 70. Rg7 {[%clk 0:00:05.8]}
70... Kh4 {[%clk 0:00:03]} 71. Ke5 {[%clk 0:00:06.3]} 71... Kh3 {[%clk
0:00:02.9]} 72. Kf4 {[%clk 0:00:06.9]} 72... Bc4 {[%clk 0:00:02.2]} 73. Rg3+
{[%clk 0:00:07.1]} 1-0

[Event "Late-Titled-Tuesday-Blitz-June-18-2024"]
[Site "Chess.com"]
[Date "2024.06.18"]
[Round "9"]
[White "MagnusCarlsen"]
[Black "SchmakAttack"]
[Result "1/2-1/2"]
[WhiteElo "3175"]
[BlackElo "2837"]
[TimeControl "180+1"]
[EndTime "15:47:20 PDT"]
[Termination "Game drawn - insufficient material"]

1. e4 {[%clk 0:02:59.9]} 1... e6 {[%clk 0:02:59.8]} 2. g3 {[%clk 0:02:59.4]}
2... d5 {[%clk 0:02:59.5]} 3. Bg2 {[%clk 0:03:00]} 3... Nc6 {[%clk 0:02:55.2]}
4. Nc3 {[%clk 0:02:57.1]} 4... d4 {[%clk 0:02:54.6]} 5. Nce2 {[%clk 0:02:57.1]}
5... e5 {[%clk 0:02:52.7]} 6. d3 {[%clk 0:02:57.1]} 6... f5 {[%clk 0:02:40.1]}
7. Nf3 {[%clk 0:02:50.4]} 7... Nf6 {[%clk 0:02:32]} 8. O-O {[%clk 0:02:49.3]}
8... fxe4 {[%clk 0:02:16.4]} 9. dxe4 {[%clk 0:02:50.2]} 9... Be7 {[%clk
0:02:16.6]} 10. Bg5 {[%clk 0:02:38]} 10... Bg4 {[%clk 0:02:14]} 11. h3 {[%clk
0:02:32.8]} 11... Be6 {[%clk 0:02:13.7]} 12. c3 {[%clk 0:02:31.8]} 12... d3
{[%clk 0:01:35.7]} 13. Nc1 {[%clk 0:02:31]} 13... Nxe4 {[%clk 0:01:22.8]} 14.
Bxe7 {[%clk 0:02:29.8]} 14... Qxe7 {[%clk 0:01:23.7]} 15. Re1 {[%clk 0:02:30]}
15... Nxf2 {[%clk 0:00:50.4]} 16. Kxf2 {[%clk 0:02:29.4]} 16... Qc5+ {[%clk
0:00:50.4]} 17. Kf1 {[%clk 0:02:12]} 17... O-O-O {[%clk 0:00:50.3]} 18. Nb3
{[%clk 0:02:06.5]} 18... Qb6 {[%clk 0:00:44.2]} 19. Qd2 {[%clk 0:02:06]} 19...
Rhf8 {[%clk 0:00:42.4]} 20. Rad1 {[%clk 0:01:57.9]} 20... Bd5 {[%clk 0:00:34.2]}
21. Qe3 {[%clk 0:01:57.8]} 21... e4 {[%clk 0:00:28.7]} 22. Kf2 {[%clk
0:01:44.9]} 22... exf3 {[%clk 0:00:22.8]} 23. Bf1 {[%clk 0:01:44.8]} 23... Bc4
{[%clk 0:00:16.1]} 24. Qxb6 {[%clk 0:01:42.6]} 24... axb6 {[%clk 0:00:17]} 25.
Nd2 {[%clk 0:01:41.1]} 25... Bxa2 {[%clk 0:00:16]} 26. Re3 {[%clk 0:01:18.9]}
26... Bf7 {[%clk 0:00:09.1]} 27. Nxf3 {[%clk 0:01:06.1]} 27... Bd5 {[%clk
0:00:05.9]} 28. Rdxd3 {[%clk 0:01:06.1]} 28... Bxf3 {[%clk 0:00:03.2]} 29. Rxf3
{[%clk 0:01:03.6]} 29... Ne5 {[%clk 0:00:03.6]} 30. Rxd8+ {[%clk 0:01:01.8]}
30... Rxd8 {[%clk 0:00:04.5]} 31. Re3 {[%clk 0:00:47.6]} 31... Rf8+ {[%clk
0:00:04.6]} 32. Kg2 {[%clk 0:00:47.1]} 32... Nc6 {[%clk 0:00:04.9]} 33. Bd3
{[%clk 0:00:44.5]} 33... g6 {[%clk 0:00:03.7]} 34. h4 {[%clk 0:00:44.3]} 34...
Kd7 {[%clk 0:00:03.5]} 35. g4 {[%clk 0:00:39.9]} 35... Re8 {[%clk 0:00:02.2]}
36. Rxe8 {[%clk 0:00:36.5]} 36... Kxe8 {[%clk 0:00:03.1]} 37. Kg3 {[%clk
0:00:37]} 37... Ke7 {[%clk 0:00:03.4]} 38. Kf4 {[%clk 0:00:36.4]} 38... Kf6
{[%clk 0:00:03.7]} 39. Be4 {[%clk 0:00:36.2]} 39... Nd8 {[%clk 0:00:03.6]} 40.
g5+ {[%clk 0:00:36.4]} 40... Ke7 {[%clk 0:00:04.1]} 41. Kg4 {[%clk 0:00:33.8]}
41... c6 {[%clk 0:00:04.1]} 42. h5 {[%clk 0:00:34.2]} 42... Kf7 {[%clk
0:00:03.1]} 43. Bd3 {[%clk 0:00:33.5]} 43... Ne6 {[%clk 0:00:03.2]} 44. h6
{[%clk 0:00:32.9]} 44... b5 {[%clk 0:00:01.9]} 45. b4 {[%clk 0:00:32.4]} 45...
Nc7 {[%clk 0:00:02]} 46. Kf4 {[%clk 0:00:25.4]} 46... Nd5+ {[%clk 0:00:02.4]}
47. Ke5 {[%clk 0:00:25.6]} 47... Nxc3 {[%clk 0:00:03.1]} 48. Bc2 {[%clk
0:00:26]} 48... Nd5 {[%clk 0:00:03.1]} 49. Bb3 {[%clk 0:00:25.9]} 49... Ke7
{[%clk 0:00:02.8]} 50. Ba2 {[%clk 0:00:25.4]} 50... b6 {[%clk 0:00:01.7]} 51.
Bb3 {[%clk 0:00:24.2]} 51... Nxb4 {[%clk 0:00:01.8]} 52. Bg8 {[%clk 0:00:24.1]}
52... Nd3+ {[%clk 0:00:02.4]} 53. Kd4 {[%clk 0:00:23.8]} 53... Nc5 {[%clk
0:00:02.8]} 54. Ke5 {[%clk 0:00:22.7]} 54... b4 {[%clk 0:00:02.6]} 55. Bxh7
{[%clk 0:00:23.1]} 55... Ne6 {[%clk 0:00:02.9]} 56. Bxg6 {[%clk 0:00:22.2]}
56... Nxg5 {[%clk 0:00:03.5]} 57. Kf5 {[%clk 0:00:21.4]} 57... Nf7 {[%clk
0:00:03.9]} 58. h7 {[%clk 0:00:21.6]} 58... Nh8 {[%clk 0:00:04.4]} 59. Kg5
{[%clk 0:00:22]} 59... b3 {[%clk 0:00:03.9]} 60. Bd3 {[%clk 0:00:22.1]} 60...
Kf7 {[%clk 0:00:03.5]} 61. Kf5 {[%clk 0:00:18.5]} 61... Kg7 {[%clk 0:00:03.1]}
62. Ke6 {[%clk 0:00:18.1]} 62... Nf7 {[%clk 0:00:02.7]} 63. h8=R {[%clk
0:00:15.7]} 63... Nxh8 {[%clk 0:00:02.4]} 64. Kd6 {[%clk 0:00:15.8]} 64... c5
{[%clk 0:00:02.8]} 65. Kc6 {[%clk 0:00:15.7]} 65... b2 {[%clk 0:00:02.1]} 66.
Kxb6 {[%clk 0:00:14.9]} 66... c4 {[%clk 0:00:02.7]} 67. Bb1 {[%clk 0:00:15.4]}
67... Nf7 {[%clk 0:00:03.4]} 68. Kc5 {[%clk 0:00:15.7]} 68... Ne5 {[%clk
0:00:03.9]} 69. Kd4 {[%clk 0:00:15.9]} 69... Kf6 {[%clk 0:00:03.4]} 70. Kc3
{[%clk 0:00:16.2]} 70... Ke6 {[%clk 0:00:03.5]} 71. Kxb2 {[%clk 0:00:16.3]}
71... Kd5 {[%clk 0:00:04.2]} 72. Ba2 {[%clk 0:00:16.9]} 72... Kd4 {[%clk
0:00:04]} 73. Bxc4 {[%clk 0:00:17.8]} 1/2-1/2

[Event "Late-Titled-Tuesday-Blitz-June-18-2024"]
[Site "Chess.com"]
[Date "2024.06.18"]
[Round "9"]
[White "HajiyevKanan"]
[Black "Goryachkina"]
[Result "0-1"]
[WhiteElo "2558"]
[BlackElo "2679"]
[TimeControl "180+1"]
[EndTime "15:47:27 PDT"]
[Termination "Goryachkina won by checkmate"]

1. d4 {[%clk 0:03:00.9]} 1... Nf6 {[%clk 0:02:59.4]} 2. Nf3 {[%clk 0:03:01.8]}
2... d5 {[%clk 0:02:59]} 3. c4 {[%clk 0:03:02.1]} 3... e6 {[%clk 0:02:58.8]} 4.
cxd5 {[%clk 0:03:03]} 4... exd5 {[%clk 0:02:59]} 5. Nc3 {[%clk 0:03:03.7]} 5...
c6 {[%clk 0:02:57.8]} 6. Qc2 {[%clk 0:03:04]} 6... g6 {[%clk 0:02:57]} 7. Bg5
{[%clk 0:03:03.5]} 7... Bg7 {[%clk 0:02:54.9]} 8. e3 {[%clk 0:03:02.9]} 8... Bf5
{[%clk 0:02:53.3]} 9. Bd3 {[%clk 0:03:03.6]} 9... Bxd3 {[%clk 0:02:53.4]} 10.
Qxd3 {[%clk 0:03:04.5]} 10... O-O {[%clk 0:02:53.5]} 11. O-O {[%clk 0:03:04.8]}
11... Nbd7 {[%clk 0:02:53.8]} 12. Rab1 {[%clk 0:03:05.4]} 12... a5 {[%clk
0:02:52.7]} 13. Qc2 {[%clk 0:03:05.7]} 13... Re8 {[%clk 0:02:51.5]} 14. a3
{[%clk 0:03:06.1]} 14... h6 {[%clk 0:02:46.4]} 15. Bh4 {[%clk 0:03:06.2]} 15...
Qe7 {[%clk 0:02:39.1]} 16. Rfc1 {[%clk 0:03:06]} 16... Qe6 {[%clk 0:02:37.3]}
17. Ne2 {[%clk 0:03:02.5]} 17... Ne4 {[%clk 0:02:35.3]} 18. Nf4 {[%clk
0:02:58.1]} 18... Qd6 {[%clk 0:02:30.1]} 19. Bg3 {[%clk 0:02:57.9]} 19... Nxg3
{[%clk 0:02:26.7]} 20. hxg3 {[%clk 0:02:58.8]} 20... Nf6 {[%clk 0:02:25.1]} 21.
Qc5 {[%clk 0:02:52.4]} 21... Qxc5 {[%clk 0:02:17]} 22. Rxc5 {[%clk 0:02:53.3]}
22... a4 {[%clk 0:02:15.7]} 23. Nd2 {[%clk 0:02:48.4]} 23... Bf8 {[%clk
0:02:11.3]} 24. Rc3 {[%clk 0:02:40.3]} 24... Bd6 {[%clk 0:02:10.8]} 25. Nd3
{[%clk 0:02:40.5]} 25... Nd7 {[%clk 0:02:07.2]} 26. b4 {[%clk 0:02:28.5]} 26...
axb3 {[%clk 0:02:04.1]} 27. Rcxb3 {[%clk 0:02:29]} 27... b5 {[%clk 0:01:59.9]}
28. Rc1 {[%clk 0:02:27.8]} 28... Rec8 {[%clk 0:01:57.7]} 29. Nb4 {[%clk
0:02:22.9]} 29... Bxb4 {[%clk 0:01:49.8]} 30. axb4 {[%clk 0:02:04.8]} 30... Nb6
{[%clk 0:01:49.7]} 31. e4 {[%clk 0:02:05.1]} 31... Nc4 {[%clk 0:01:47.7]} 32.
Nxc4 {[%clk 0:01:51.3]} 32... dxc4 {[%clk 0:01:42.1]} 33. Rb2 {[%clk 0:01:47.7]}
33... Rd8 {[%clk 0:01:40.7]} 34. Rd1 {[%clk 0:01:48.3]} 34... Ra3 {[%clk
0:01:34.9]} 35. f3 {[%clk 0:01:32.7]} 35... Rd3 {[%clk 0:01:32.1]} 36. Rxd3
{[%clk 0:01:22.1]} 36... cxd3 {[%clk 0:01:32.3]} 37. d5 {[%clk 0:01:12.4]} 37...
cxd5 {[%clk 0:01:29.5]} 38. exd5 {[%clk 0:01:13.1]} 38... Rxd5 {[%clk
0:01:28.3]} 39. Rd2 {[%clk 0:01:13.4]} 39... h5 {[%clk 0:01:15.8]} 40. Kf2
{[%clk 0:01:12.7]} 40... Rd4 {[%clk 0:01:15.9]} 41. Ke3 {[%clk 0:01:10.5]} 41...
Rxb4 {[%clk 0:01:16.1]} 42. Kxd3 {[%clk 0:01:11.1]} 42... Kg7 {[%clk 0:01:13.5]}
43. Re2 {[%clk 0:01:10.4]} 43... Rb3+ {[%clk 0:01:11.9]} 44. Kd4 {[%clk
0:01:07.4]} 44... Rb1 {[%clk 0:01:08.8]} 45. Kc5 {[%clk 0:01:04.8]} 45... Kf6
{[%clk 0:01:07.6]} 46. Rd2 {[%clk 0:00:56.1]} 46... Ke6 {[%clk 0:01:02.3]} 47.
Re2+ {[%clk 0:00:56.5]} 47... Kf5 {[%clk 0:01:02.2]} 48. Rd2 {[%clk 0:00:55.1]}
48... g5 {[%clk 0:00:58]} 49. Rd5+ {[%clk 0:00:52.2]} 49... Kg6 {[%clk
0:00:58.3]} 50. Rd6+ {[%clk 0:00:51.2]} 50... f6 {[%clk 0:00:58.3]} 51. Rd2
{[%clk 0:00:48]} 51... Rb3 {[%clk 0:00:55.6]} 52. Re2 {[%clk 0:00:47]} 52... g4
{[%clk 0:00:53.9]} 53. Rf2 {[%clk 0:00:43.2]} 53... Kg5 {[%clk 0:00:51.3]} 54.
Kd4 {[%clk 0:00:38.2]} 54... Rb1 {[%clk 0:00:39.2]} 55. Kc5 {[%clk 0:00:36.9]}
55... f5 {[%clk 0:00:35.2]} 56. Kd4 {[%clk 0:00:23.4]} 56... b4 {[%clk
0:00:27.7]} 57. f4+ {[%clk 0:00:08.6]} 57... Kf6 {[%clk 0:00:24.6]} 58. Kc4
{[%clk 0:00:09.1]} 58... Re1 {[%clk 0:00:19.2]} 59. Kd3 {[%clk 0:00:07.1]} 59...
Ke6 {[%clk 0:00:14.9]} 60. Rb2 {[%clk 0:00:06.5]} 60... Rg1 {[%clk 0:00:14.7]}
61. Ke3 {[%clk 0:00:05.1]} 61... Re1+ {[%clk 0:00:09.4]} 62. Kf2 {[%clk
0:00:03.8]} 62... Re4 {[%clk 0:00:09.8]} 63. Rc2 {[%clk 0:00:03.2]} 63... Kd5
{[%clk 0:00:10.1]} 64. Kf1 {[%clk 0:00:02.8]} 64... b3 {[%clk 0:00:10.2]} 65.
Rc3 {[%clk 0:00:02.6]} 65... Rb4 {[%clk 0:00:10.4]} 66. Rc1 {[%clk 0:00:03.2]}
66... b2 {[%clk 0:00:10.7]} 67. Rd1+ {[%clk 0:00:03.7]} 67... Kc4 {[%clk
0:00:11.1]} 68. Rb1 {[%clk 0:00:04.6]} 68... Kc3 {[%clk 0:00:11.6]} 69. Ke2
{[%clk 0:00:05.3]} 69... Kc2 {[%clk 0:00:12]} 70. Rf1 {[%clk 0:00:05.7]} 70...
b1=Q {[%clk 0:00:12]} 71. Rxb1 {[%clk 0:00:06.2]} 71... Rxb1 {[%clk 0:00:12.3]}
72. Kf2 {[%clk 0:00:06.3]} 72... Rb3 {[%clk 0:00:12.2]} 73. Ke2 {[%clk
0:00:06.5]} 73... Rb4 {[%clk 0:00:12.6]} 74. Kf2 {[%clk 0:00:07.4]} 74... Re4
{[%clk 0:00:12.9]} 75. Kf1 {[%clk 0:00:07.6]} 75... Kd2 {[%clk 0:00:13.2]} 76.
Kf2 {[%clk 0:00:08.5]} 76... Re2+ {[%clk 0:00:13.1]} 77. Kf1 {[%clk 0:00:08.9]}
77... Ke3 {[%clk 0:00:13.1]} 78. Kg1 {[%clk 0:00:09.5]} 78... Rc2 {[%clk
0:00:12.4]} 79. Kh2 {[%clk 0:00:10.4]} 79... Rc4 {[%clk 0:00:12.1]} 80. Kg1
{[%clk 0:00:10.7]} 80... h4 {[%clk 0:00:12.2]} 81. Kh2 {[%clk 0:00:11.6]} 81...
Rc2 {[%clk 0:00:10.6]} 82. gxh4 {[%clk 0:00:11.6]} 82... Kxf4 {[%clk 0:00:10.6]}
83. Kh1 {[%clk 0:00:10]} 83... Kg3 {[%clk 0:00:10.4]} 84. h5 {[%clk 0:00:10.7]}
84... Rc1# {[%clk 0:00:10.8]} 0-1

[Event "Late-Titled-Tuesday-Blitz-June-18-2024"]
[Site "Chess.com"]
[Date "2024.06.18"]
[Round "10"]
[White "Connectedcloud"]
[Black "maurovargas01"]
[Result "1-0"]
[WhiteElo "2308"]
[BlackElo "1940"]
[TimeControl "180+1"]
[EndTime "15:50:16 PDT"]
[Termination "Connectedcloud won by checkmate"]

1. e4 {[%clk 0:03:00.9]} 1... d5 {[%clk 0:02:57.4]} 2. exd5 {[%clk 0:03:00.8]}
2... Qxd5 {[%clk 0:02:58.3]} 3. Nc3 {[%clk 0:03:01.3]} 3... Qa5 {[%clk
0:02:58.7]} 4. d4 {[%clk 0:03:01.4]} 4... c6 {[%clk 0:02:59.1]} 5. Nf3 {[%clk
0:03:01.3]} 5... Nf6 {[%clk 0:02:59.4]} 6. Bc4 {[%clk 0:03:00.2]} 6... Bg4
{[%clk 0:02:59.6]} 7. h3 {[%clk 0:02:54.9]} 7... Bh5 {[%clk 0:02:59.4]} 8. g4
{[%clk 0:02:54.7]} 8... Bg6 {[%clk 0:02:59.4]} 9. Ne5 {[%clk 0:02:54.1]} 9...
Be4 {[%clk 0:02:59.1]} 10. Bxf7+ {[%clk 0:02:49.5]} 10... Kd8 {[%clk 0:02:58.2]}
11. Nc4 {[%clk 0:02:45.2]} 11... Qc7 {[%clk 0:02:37.3]} 12. Nxe4 {[%clk
0:02:45]} 12... Nxe4 {[%clk 0:02:36.9]} 13. Qe2 {[%clk 0:02:41.5]} 13... Nd6
{[%clk 0:02:29]} 14. Nxd6 {[%clk 0:02:29.6]} 14... exd6 {[%clk 0:02:28.7]} 15.
Qe8# {[%clk 0:02:29.8]} 1-0